bitfinex/quotes_BTCUSD_20250825
["timestamp","ask_amount","ask_price","bid_price","bid_amount"]
[1756113406608,0.00669071,111710.0,111700.0,1.64235954]
[1756113406829,0.00669071,111710.0,111700.0,1.64231954]
[1756113407048,0.00669071,111710.0,111700.0,1.48147954]
[1756113407272,0.00669071,111710.0,111700.0,1.64231954]
[1756113407485,0.00769071,111710.0,111700.0,1.64231954]
[1756113407911,0.00769071,111710.0,111700.0,1.48147954]
[1756113408179,0.00769071,111710.0,111700.0,1.64219954]
[1756113409059,0.002,111710.0,111700.0,1.64219954]
[1756113411122,0.00198,111710.0,111700.0,1.64722954]
[1756113411330,0.00198,111710.0,111700.0,1.64219954]
[1756113411950,0.00198,111710.0,111700.0,0.788346]
[1756113412120,0.00198,111710.0,111700.0,1.64219954]
[1756113417525,0.00198,111710.0,111700.0,1.64512954]
[1756113418365,0.00198,111710.0,111700.0,1.64722954]
[1756113419833,0.00198,111710.0,111700.0,1.64163954]
[1756113420314,0.00198,111710.0,111700.0,0.627626]
[1756113420511,0.00464,111710.0,111700.0,0.447746]
[1756113421641,0.00198,111710.0,111700.0,1.30159954]
[1756113421861,0.00198,111710.0,111700.0,0.447746]
[1756113422722,0.00198,111710.0,111700.0,1.30159954]
[1756113423798,0.00198,111710.0,111700.0,0.447746]
[1756113424229,0.00198,111710.0,111700.0,1.30159954]
[1756113424440,0.00198,111710.0,111700.0,1.30667954]
[1756113424671,0.00198,111710.0,111700.0,1.30164954]
[1756113424894,0.00198,111710.0,111700.0,1.30136954]
[1756113425740,0.00198,111710.0,111700.0,0.452546]
[1756113425948,0.00198,111710.0,111700.0,1.30136954]
[1756113426611,0.00198,111710.0,111700.0,0.447516]
[1756113426820,0.00198,111710.0,111700.0,1.30136954]
[1756113427005,0.00198,111710.0,111700.0,1.30429954]
[1756113427208,0.00198,111710.0,111700.0,0.452546]
[1756113427422,0.00198,111710.0,111700.0,1.08616954]
[1756113428324,0.00198,111710.0,111700.0,1.08909954]
[1756113428984,0.00198,111710.0,111700.0,1.08616954]
[1756113429467,0.00198,111710.0,111700.0,1.09130954]
[1756113430289,0.00266,111740.0,111700.0,1.09130954]
[1756113430527,0.00266,111740.0,111720.0,0.85385354]
[1756113430740,0.00197,111730.0,111720.0,0.85600354]
[1756113430952,0.00197,111730.0,111720.0,1.08516354]
[1756113431164,0.00197,111730.0,111720.0,1.08815354]
[1756113431380,0.00014418,111750.0,111720.0,1.08815354]
[1756113431589,0.00014418,111750.0,111730.0,1.01409354]
[1756113431820,0.00697,111740.0,111730.0,0.85899354]
[1756113432028,0.00497,111740.0,111730.0,0.16534]
[1756113432636,0.00197,111740.0,111730.0,0.16757753]
[1756113433078,0.00697,111740.0,111730.0,0.16757753]
[1756113433264,0.00697,111740.0,111720.0,0.0913442]
[1756113433463,0.00697,111740.0,111730.0,0.16239753]
[1756113434047,0.00697,111740.0,111730.0,0.16463506]
[1756113434497,0.00697,111740.0,111730.0,0.16762506]
[1756113434708,0.00697,111740.0,111730.0,0.16753753]
[1756113435173,0.00997,111740.0,111730.0,1.02139107]
[1756113435384,0.00997,111740.0,111730.0,1.01915354]
[1756113435610,0.008,111740.0,111730.0,1.01915354]
[1756113436359,0.00014418,111750.0,111730.0,1.02715354]
[1756113436594,0.00014418,111750.0,111740.0,0.00447466]
[1756113436840,0.00212418,111750.0,111740.0,0.00447466]
[1756113437759,0.00212418,111750.0,111740.0,0.8583282]
[1756113437981,0.00212418,111750.0,111730.0,1.02500354]
[1756113438175,0.00192418,111750.0,111740.0,0.00447466]
[1756113439341,0.00492418,111750.0,111740.0,0.00447466]
[1756113439550,0.00992418,111750.0,111740.0,0.00447466]
[1756113439767,0.00692418,111750.0,111740.0,0.00447466]
[1756113440214,0.00992418,111750.0,111740.0,0.00961466]
[1756113441513,0.00992418,111750.0,111740.0,0.8634682]
[1756113441514,0.008,111750.0,111740.0,0.8634682]
[1756113441721,0.008,111750.0,111740.0,0.00514]
[1756113441928,0.008,111750.0,111740.0,0.8634682]
[1756113442160,0.008,111750.0,111740.0,0.00514]
[1756113442404,0.005,111750.0,111740.0,0.8634682]
[1756113442614,0.005,111750.0,111740.0,0.85899354]
[1756113442862,0.003,111750.0,111740.0,0.85899354]
[1756113443057,0.006,111750.0,111740.0,0.85899354]
[1756113443270,0.003,111750.0,111740.0,0.85899354]
[1756113443499,0.003,111750.0,111740.0,0.00514]
[1756113443721,0.005,111750.0,111740.0,0.8634682]
[1756113443946,0.005,111750.0,111740.0,0.85899354]
[1756113447881,0.005,111750.0,111740.0,0.00514]
[1756113448088,0.005,111750.0,111740.0,0.00961466]
[1756113448289,0.00954,111750.0,111730.0,0.008]
[1756113448499,0.00954,111750.0,111740.0,0.15944]
[1756113449106,0.00494,111750.0,111740.0,0.15944]
[1756113449531,0.00694,111750.0,111740.0,0.15944]
[1756113451094,0.00494,111750.0,111740.0,0.15944]
[1756113451314,0.00754,111750.0,111740.0,0.1594]
[1756113451756,0.00954,111750.0,111720.0,0.3297772]
[1756113451978,0.0026,111740.0,111720.0,0.31086]
[1756113452232,0.0026,111740.0,111730.0,0.1594]
[1756113452655,0.00454,111740.0,111730.0,0.1594]
[1756113453299,0.00394,111740.0,111730.0,0.1594]
[1756113453551,0.00194,111740.0,111730.0,0.1594]
[1756113453995,0.00494,111740.0,111730.0,0.1594]
[1756113454383,0.00494,111740.0,111730.0,0.16163753]
[1756113454707,0.00494,111740.0,111730.0,0.16378753]
[1756113454960,0.003,111740.0,111730.0,0.16901506]
[1756113455149,0.003,111740.0,111730.0,1.02063107]
[1756113455451,0.004,111740.0,111730.0,0.16454]
[1756113455665,0.004,111740.0,111730.0,0.16901506]
[1756113455869,0.003,111740.0,111730.0,0.16677753]
[1756113456105,0.31306618,111770.0,111730.0,0.16677753]
[1756113456310,0.31306618,111770.0,111740.0,0.00223733]
[1756113456550,0.31306618,111770.0,111750.0,0.1594]
[1756113457710,0.31606618,111770.0,111750.0,0.1594]
[1756113458511,0.31906618,111770.0,111750.0,0.1594]
[1756113458949,0.31606618,111770.0,111750.0,0.1594]
[1756113459168,0.31906618,111770.0,111750.0,0.1594]
[1756113460229,0.31906618,111770.0,111740.0,0.00522733]
[1756113460442,0.31906618,111770.0,111750.0,0.1594]
[1756113460842,0.5069526,111770.0,111730.0,0.02704518]
[1756113461101,0.49500566,111770.0,111730.0,0.03008518]
[1756113461337,0.5039526,111770.0,111740.0,0.1594]
[1756113461502,0.5069526,111770.0,111740.0,0.1594]
[1756113461938,0.5039526,111770.0,111740.0,0.1594]
[1756113462501,0.5069526,111770.0,111740.0,0.1594]
[1756113462693,0.5039526,111770.0,111740.0,0.1594]
[1756113464143,0.18790525,111760.0,111730.0,0.00014418]
[1756113464284,0.18790525,111760.0,111730.0,0.15950418]
[1756113464492,0.6932176,111770.0,111730.0,0.16254418]
[1756113464711,0.18790305,111760.0,111730.0,0.16254418]
[1756113464945,0.17895531,111760.0,111730.0,0.16254418]
[1756113465180,0.6932176,111770.0,111730.0,0.16254418]
[1756113465333,0.6902176,111770.0,111730.0,0.16254418]
[1756113465746,0.002,111760.0,111730.0,0.16254418]
[1756113465951,0.002,111760.0,111730.0,0.15362418]
[1756113466979,0.004,111760.0,111730.0,0.15362418]
[1756113467184,0.002,111760.0,111730.0,0.15362418]
[1756113467707,0.002,111760.0,111740.0,0.00304]
[1756113468425,0.004,111760.0,111730.0,0.15362418]
[1756113468866,0.002,111760.0,111730.0,0.15362418]
[1756113469685,0.004,111760.0,111740.0,0.00304]
[1756113469905,0.002,111760.0,111740.0,0.00304]
[1756113470337,0.004,111760.0,111740.0,0.00304]
[1756113470897,0.002,111760.0,111740.0,0.00304]
[1756113471308,0.004,111760.0,111740.0,0.00304]
[1756113471507,0.006,111760.0,111740.0,0.00304]
[1756113476414,0.006,111760.0,111740.0,0.00309]
[1756113478155,0.21479088,111770.0,111740.0,0.34309]
[1756113478371,0.20584394,111770.0,111740.0,0.50241]
[1756113479498,0.20884394,111770.0,111740.0,0.50241]
[1756113480374,0.21084394,111770.0,111740.0,0.50241]
[1756113480563,0.21923553,111770.0,111740.0,0.50241]
[1756113480701,0.21084394,111770.0,111740.0,0.50241]
[1756113480942,0.04029648,111770.0,111740.0,0.50241]
[1756113481549,0.04029648,111770.0,111750.0,0.00304]
[1756113482201,0.21923544,111770.0,111740.0,0.49937]
[1756113482412,0.21923544,111770.0,111740.0,0.50241]
[1756113482647,0.21623544,111770.0,111740.0,0.50241]
[1756113482879,0.21623544,111770.0,111750.0,0.00304]
[1756113483091,0.2152359,111770.0,111750.0,0.00304]
[1756113483305,0.03829694,111770.0,111750.0,0.00304]
[1756113483522,0.21823611,111770.0,111740.0,0.50241]
[1756113483729,0.21823611,111770.0,111750.0,0.00304]
[1756113484016,0.21623611,111770.0,111750.0,0.00304]
[1756113484202,0.21623681,111770.0,111750.0,0.00304]
[1756113484645,0.22318375,111770.0,111740.0,0.50241]
[1756113484865,0.22418375,111770.0,111740.0,0.50241]
[1756113485313,0.22618375,111770.0,111740.0,0.49937]
[1756113485539,0.22618375,111770.0,111750.0,0.00304]
[1756113485762,0.22418375,111770.0,111750.0,0.00304]
[1756113486197,0.22518375,111770.0,111750.0,0.00304]
[1756113486630,0.22518375,111770.0,111740.0,0.15937]
[1756113486862,0.22718375,111770.0,111740.0,0.00309]
[1756113487075,0.22718375,111770.0,111750.0,0.00304]
[1756113487519,0.22518375,111770.0,111750.0,0.00304]
[1756113487750,0.19827875,111770.0,111750.0,0.00304]
[1756113487973,0.026905,111760.0,111750.0,0.00304]
[1756113488207,0.026905,111760.0,111740.0,0.00309]
[1756113489060,0.026905,111760.0,111740.0,5e-05]
[1756113489061,0.36510104,111760.0,111740.0,5e-05]
[1756113489498,0.186145,111760.0,111740.0,5e-05]
[1756113489703,0.19453885,111760.0,111740.0,5e-05]
[1756113489908,0.19553885,111760.0,111740.0,5e-05]
[1756113490120,0.19453885,111760.0,111740.0,5e-05]
[1756113490372,0.186145,111760.0,111740.0,5e-05]
[1756113490592,0.19753841,111760.0,111740.0,5e-05]
[1756113491150,0.20053841,111760.0,111740.0,5e-05]
[1756113491364,0.192145,111760.0,111740.0,5e-05]
[1756113493348,0.37110063,111760.0,111740.0,5e-05]
[1756113493778,0.372905,111760.0,111740.0,0.0031]
[1756113493994,0.372905,111760.0,111750.0,0.00211]
[1756113494404,0.372905,111760.0,111750.0,0.00516]
[1756113495108,0.372905,111760.0,111750.0,0.00305]
[1756113495755,0.369905,111760.0,111750.0,0.00305]
[1756113495981,0.366905,111760.0,111750.0,0.00305]
[1756113496191,0.371905,111760.0,111750.0,0.00305]
[1756113496622,0.371905,111760.0,111740.0,0.0031]
[1756113497478,0.366905,111760.0,111740.0,0.0031]
[1756113497689,0.369905,111760.0,111740.0,0.0031]
[1756113498393,0.371905,111760.0,111740.0,0.0031]
[1756113505792,0.005,111760.0,111740.0,0.0031]
[1756113509630,0.345,111760.0,111740.0,0.0031]
[1756113510178,0.345,111760.0,111750.0,0.00211]
[1756113510384,0.345,111760.0,111750.0,0.00516]
[1756113510634,0.345,111760.0,111740.0,0.0031]
[1756113511709,0.343,111760.0,111740.0,0.0031]
[1756113512122,0.345,111760.0,111740.0,0.0031]
[1756113512366,0.342,111760.0,111740.0,0.0031]
[1756113512549,0.343,111760.0,111740.0,0.0031]
[1756113512752,0.344,111760.0,111740.0,0.0031]
[1756113513118,0.341,111760.0,111740.0,0.0031]
[1756113513322,0.342,111760.0,111740.0,0.0031]
[1756113522274,0.50104,111760.0,111740.0,0.0031]
[1756113523931,0.50104,111760.0,111720.0,1.21257437]
[1756113524138,0.00195,111750.0,111720.0,1.21257437]
[1756113524554,0.00195,111750.0,111720.0,0.254864]
[1756113524767,0.00195,111750.0,111720.0,1.21257437]
[1756113525646,0.00195,111750.0,111730.0,0.15904]
[1756113526048,0.00195,111750.0,111730.0,0.16223]
[1756113526280,0.00495,111750.0,111730.0,0.16223]
[1756113526428,0.00595,111750.0,111730.0,0.16223]
[1756113526758,0.032854,111750.0,111730.0,0.189134]
[1756113527401,0.032854,111750.0,111740.0,0.0006]
[1756113527821,0.031854,111750.0,111740.0,0.0006]
[1756113528027,0.032854,111750.0,111740.0,0.0006]
[1756113528238,0.032854,111750.0,111730.0,0.189134]
[1756113528693,0.031854,111750.0,111730.0,0.189134]
[1756113528942,0.032854,111750.0,111730.0,0.189134]
[1756113529359,0.031854,111750.0,111730.0,0.189134]
[1756113529823,0.032854,111750.0,111730.0,0.189134]
[1756113530599,0.032854,111750.0,111740.0,0.00214]
[1756113531432,0.031854,111750.0,111740.0,0.00214]
[1756113531952,0.032854,111750.0,111740.0,0.00214]
[1756113532789,0.032854,111750.0,111730.0,0.189134]
[1756113534477,0.031854,111750.0,111730.0,0.189134]
[1756113534912,0.032854,111750.0,111740.0,0.00214]
[1756113535119,0.032854,111750.0,111730.0,0.189134]
[1756113535663,0.031854,111750.0,111740.0,0.00214]
[1756113535909,0.031854,111750.0,111730.0,0.189134]
[1756113536194,0.032854,111750.0,111740.0,0.00214]
[1756113538180,0.026904,111750.0,111740.0,0.9652777]
[1756113538382,4.803e-05,111760.0,111740.0,0.96304037]
[1756113538551,0.001,111750.0,111740.0,0.02904]
[1756113538775,0.001,111750.0,111740.0,0.16102]
[1756113539027,4.803e-05,111760.0,111740.0,0.16102]
[1756113539153,4.803e-05,111760.0,111750.0,0.00319]
[1756113539362,4.803e-05,111760.0,111750.0,0.00533]
[1756113539793,4.803e-05,111760.0,111750.0,0.98993937]
[1756113540660,0.00104803,111760.0,111750.0,0.032229]
[1756113540865,0.00104803,111760.0,111750.0,0.98993937]
[1756113541504,0.00204803,111760.0,111750.0,0.98993937]
[1756113541879,0.00104803,111760.0,111750.0,1.14881937]
[1756113542135,0.00499803,111760.0,111750.0,0.026899]
[1756113542395,0.00599803,111760.0,111750.0,0.026899]
[1756113542601,0.00104803,111760.0,111750.0,0.9921765]
[1756113542807,0.00104803,111760.0,111750.0,0.98993937]
[1756113543229,4.803e-05,111760.0,111750.0,0.98993937]
[1756113543402,4.803e-05,111760.0,111750.0,0.032229]
[1756113543894,0.00104803,111760.0,111750.0,0.032229]
[1756113544506,0.00204803,111760.0,111750.0,0.032229]
[1756113544751,0.00204803,111760.0,111750.0,0.191069]
[1756113544969,0.00104803,111760.0,111750.0,0.187879]
[1756113545153,0.00204803,111760.0,111750.0,0.187879]
[1756113545360,0.00104803,111760.0,111750.0,0.187879]
[1756113546972,0.00104803,111760.0,111750.0,0.029039]
[1756113547205,0.00104803,111760.0,111750.0,0.187839]
[1756113547815,0.00104803,111760.0,111750.0,0.191029]
[1756113548026,0.00104803,111760.0,111750.0,0.187839]
[1756113548242,0.00299803,111760.0,111750.0,0.029039]
[1756113548455,0.00599803,111760.0,111750.0,0.185659]
[1756113549953,0.00599803,111760.0,111750.0,0.187639]
[1756113554478,0.00599803,111760.0,111750.0,0.185619]
[1756113554686,0.00599803,111760.0,111750.0,0.15868]
[1756113554895,0.03290103,111760.0,111740.0,0.095744]
[1756113555143,0.02990103,111760.0,111740.0,0.254424]
[1756113555350,0.00297,111750.0,111740.0,0.254424]
[1756113555562,0.00507,111750.0,111740.0,0.256404]
[1756113557168,0.00507,111750.0,111740.0,0.257404]
[1756113557600,0.02992103,111760.0,111740.0,0.257404]
[1756113558890,0.0021,111750.0,111740.0,0.257404]
[1756113559451,0.0021,111750.0,111740.0,0.256404]
[1756113559884,0.00507,111750.0,111740.0,0.256404]
[1756113560109,0.00507,111750.0,111740.0,0.097724]
[1756113560326,0.00507,111750.0,111740.0,0.256364]
[1756113560551,0.00507,111750.0,111740.0,0.257364]
[1756113561908,0.00507,111750.0,111740.0,0.098724]
[1756113562100,0.00507,111750.0,111740.0,0.257324]
[1756113562933,0.00507,111750.0,111740.0,0.098724]
[1756113563155,0.00507,111750.0,111740.0,0.255344]
[1756113564033,0.00507,111750.0,111740.0,0.096744]
[1756113564259,0.00507,111750.0,111740.0,0.255344]
[1756113564904,0.00507,111750.0,111740.0,0.257324]
[1756113567977,0.00507,111750.0,111740.0,0.188484]
[1756113568181,0.0021,111750.0,111740.0,0.188484]
[1756113568387,0.00507,111750.0,111740.0,0.188484]
[1756113568593,0.0021,111750.0,111740.0,0.188484]
[1756113569846,0.00507,111750.0,111740.0,0.188484]
[1756113572357,0.02695103,111760.0,111740.0,0.188484]
[1756113572566,0.0021,111750.0,111740.0,0.188484]
[1756113573109,0.0021,111750.0,111740.0,0.187484]
[1756113573560,0.00507,111750.0,111740.0,0.185504]
[1756113573775,0.03092103,111760.0,111740.0,0.187484]
[1756113574216,0.0021,111750.0,111740.0,0.188484]
[1756113574646,0.00507,111750.0,111740.0,0.188484]
[1756113576115,0.0021,111750.0,111740.0,0.187484]
[1756113576979,0.03092103,111760.0,111740.0,0.187484]
[1756113577191,0.0021,111750.0,111740.0,0.188484]
[1756113577956,0.0021,111750.0,111740.0,0.187484]
[1756113578800,0.00507,111750.0,111740.0,0.028884]
[1756113578996,0.00507,111750.0,111740.0,0.187284]
[1756113579412,0.0021,111750.0,111740.0,0.187284]
[1756113579620,0.03092103,111760.0,111740.0,0.187284]
[1756113580071,0.03092103,111760.0,111740.0,0.188284]
[1756113580615,0.02992103,111760.0,111740.0,0.188284]
[1756113580816,0.02992103,111760.0,111740.0,0.187284]
[1756113581028,0.02992103,111760.0,111740.0,0.187244]
[1756113582003,0.02992103,111760.0,111740.0,0.190404]
[1756113582426,0.02695103,111760.0,111740.0,0.190404]
[1756113582667,4.803e-05,111760.0,111750.0,0.00316]
[1756113582932,0.00104803,111760.0,111750.0,0.85826155]
[1756113583162,0.00104803,111760.0,111750.0,0.85602442]
[1756113583374,0.00104803,111760.0,111750.0,0.88292442]
[1756113583592,4.803e-05,111760.0,111750.0,0.88292442]
[1756113584038,0.38127293,111780.0,111750.0,0.88292442]
[1756113584274,0.36694603,111780.0,111760.0,0.16148]
[1756113584492,0.36694603,111780.0,111770.0,0.00198]
[1756113584712,0.02694603,111780.0,111770.0,0.00198]
[1756113584934,4.803e-05,111780.0,111770.0,0.00514]
[1756113585142,4.803e-05,111780.0,111770.0,0.032037]
[1756113585541,4.803e-05,111780.0,111770.0,0.028877]
[1756113585940,0.00204803,111780.0,111770.0,0.028877]
[1756113586319,0.00204803,111780.0,111770.0,0.00198]
[1756113586550,4.803e-05,111780.0,111770.0,0.00203]
[1756113586696,0.00204803,111780.0,111770.0,0.00203]
[1756113586933,0.00504803,111780.0,111770.0,0.00203]
[1756113587559,0.00204803,111780.0,111770.0,0.00203]
[1756113588269,0.00504803,111780.0,111770.0,0.00203]
[1756113590274,0.00504803,111780.0,111770.0,0.00519]
[1756113591096,0.00204803,111780.0,111770.0,0.00519]
[1756113591303,4.803e-05,111780.0,111770.0,0.00519]
[1756113591506,0.00104803,111780.0,111770.0,0.00519]
[1756113592547,0.00204803,111780.0,111770.0,0.00519]
[1756113592992,4.803e-05,111780.0,111770.0,0.00203]
[1756113593429,4.803e-05,111780.0,111770.0,0.00519]
[1756113593875,4.803e-05,111780.0,111760.0,0.250328]
[1756113594089,0.00301803,111780.0,111760.0,0.250328]
[1756113600862,4.803e-05,111780.0,111760.0,1.10121242]
[1756113601755,0.00301803,111780.0,111760.0,1.10121242]
[1756113602597,0.00301803,111780.0,111760.0,0.250328]
[1756113602726,0.00301803,111780.0,111760.0,1.10121242]
[1756113606248,0.00301803,111780.0,111770.0,0.158]
[1756113607575,4.803e-05,111780.0,111770.0,0.158]
[1756113607758,0.00301803,111780.0,111770.0,0.158]
[1756113608513,0.00508803,111780.0,111770.0,0.158]
[1756113608968,0.00301803,111780.0,111770.0,0.158]
[1756113609841,0.00508803,111780.0,111770.0,0.158]
[1756113613946,0.00301803,111780.0,111770.0,0.158]
[1756113616943,0.00511803,111780.0,111770.0,0.158]
[1756113617370,0.00301803,111780.0,111770.0,0.158]
[1756113619586,0.00511803,111780.0,111770.0,0.158]
[1756113620115,0.00301803,111780.0,111770.0,0.158]
[1756113622087,0.00511803,111780.0,111770.0,0.158]
[1756113623112,0.00301803,111780.0,111770.0,0.158]
[1756113623317,0.00511803,111780.0,111770.0,0.158]
[1756113623686,0.00301803,111780.0,111770.0,0.158]
[1756113624526,0.00511803,111780.0,111770.0,0.158]
[1756113624964,0.00301803,111780.0,111770.0,0.158]
[1756113625807,0.00511803,111780.0,111770.0,0.158]
[1756113627117,0.00301803,111780.0,111770.0,0.158]
[1756113627327,0.00511803,111780.0,111770.0,0.158]
[1756113628231,0.00511803,111780.0,111760.0,1.05271041]
[1756113628437,0.00511803,111780.0,111770.0,0.15764]
[1756113630369,0.00511803,111780.0,111760.0,1.05271041]
[1756113630583,0.00511803,111780.0,111770.0,0.15764]
[1756113634746,0.00511803,111780.0,111760.0,1.05271041]
[1756113634952,0.00511803,111780.0,111770.0,0.15756]
[1756113636402,0.00511803,111780.0,111770.0,0.15752]
[1756113639096,0.00511803,111780.0,111770.0,0.15748]
[1756113640782,0.00517803,111780.0,111770.0,0.15748]
[1756113642581,0.00517803,111780.0,111770.0,0.15744]
[1756113643289,0.00517803,111780.0,111760.0,0.06884]
[1756113643290,0.18410136,111780.0,111760.0,0.06884]
[1756113643530,0.00317,111770.0,111760.0,0.15744]
[1756113644039,0.00533,111770.0,111760.0,0.15744]
[1756113644832,0.00533,111770.0,111760.0,0.001]
[1756113645043,0.34166889,111770.0,111760.0,0.001]
[1756113645245,0.36857189,111770.0,111760.0,0.001]
[1756113645585,0.36857189,111770.0,111760.0,0.002]
[1756113646017,0.36857189,111770.0,111760.0,0.001]
[1756113647292,0.34,111760.0,111750.0,5e-05]
[1756113647521,0.38476846,111760.0,111750.0,5e-05]
[1756113648584,0.38576846,111760.0,111750.0,5e-05]
[1756113651310,0.38576846,111760.0,111750.0,5e-05]
[1756113651533,0.38676846,111760.0,111750.0,5e-05]
[1756113653200,0.56572336,111760.0,111750.0,5e-05]
[1756113653402,0.59262736,111760.0,111750.0,5e-05]
[1756113659547,0.61007638,111760.0,111750.0,5e-05]
[1756113660435,0.60907638,111760.0,111750.0,5e-05]
[1756113660933,0.76723638,111760.0,111750.0,5e-05]
[1756113661138,0.61207638,111760.0,111750.0,5e-05]
[1756113661365,0.76723638,111760.0,111750.0,5e-05]
[1756113661781,0.76923638,111760.0,111750.0,5e-05]
[1756113663256,0.78595487,111760.0,111750.0,5e-05]
[1756113663769,0.62879487,111760.0,111750.0,5e-05]
[1756113664033,0.78591487,111760.0,111750.0,5e-05]
[1756113664253,0.34,111740.0,111730.0,5e-05]
[1756113664476,0.49928,111740.0,111730.0,5e-05]
[1756113664684,0.34216,111740.0,111730.0,5e-05]
[1756113664963,0.34533,111740.0,111730.0,5e-05]
[1756113665635,0.34533,111740.0,111730.0,9.803e-05]
[1756113666853,0.35730508,111740.0,111730.0,9.803e-05]
[1756113674925,0.3740599,111740.0,111730.0,9.803e-05]
[1756113675362,0.3740599,111740.0,111730.0,0.95793815]
[1756113676494,0.3740599,111740.0,111730.0,9.803e-05]
[1756113676736,0.37406494,111740.0,111730.0,9.803e-05]
[1756113677171,0.37406567,111740.0,111730.0,9.803e-05]
[1756113681767,0.37406334,111740.0,111730.0,9.803e-05]
[1756113682880,0.37606334,111740.0,111730.0,9.803e-05]
[1756113683299,0.37506334,111740.0,111730.0,9.803e-05]
[1756113683753,0.37606334,111740.0,111730.0,9.803e-05]
[1756113686003,0.56342986,111740.0,111730.0,9.803e-05]
[1756113686494,0.56971874,111740.0,111730.0,9.803e-05]
[1756113687399,0.56971853,111740.0,111730.0,9.803e-05]
[1756113688543,0.56871853,111740.0,111730.0,9.803e-05]
[1756113688729,0.56771853,111740.0,111730.0,9.803e-05]
[1756113688991,0.56971853,111740.0,111730.0,9.803e-05]
[1756113689199,0.59762953,111740.0,111730.0,9.803e-05]
[1756113689382,0.75442953,111740.0,111730.0,9.803e-05]
[1756113693332,0.74814417,111740.0,111730.0,9.803e-05]
[1756113693863,0.754427,111740.0,111730.0,9.803e-05]
[1756113694211,0.74814417,111740.0,111730.0,9.803e-05]
[1756113694646,0.75442656,111740.0,111730.0,9.803e-05]
[1756113695330,0.40814417,111740.0,111730.0,9.803e-05]
[1756113696340,0.40813183,111740.0,111730.0,9.803e-05]
[1756113696796,0.40813114,111740.0,111730.0,9.803e-05]
[1756113697228,0.40813113,111740.0,111730.0,9.803e-05]
[1756113698835,0.74813113,111740.0,111730.0,9.803e-05]
[1756113700103,0.73975509,111740.0,111730.0,9.803e-05]
[1756113700306,0.74812919,111740.0,111730.0,9.803e-05]
[1756113701153,0.73975509,111740.0,111730.0,9.803e-05]
[1756113702813,0.73959131,111740.0,111730.0,9.803e-05]
[1756113704454,0.75359604,111740.0,111730.0,9.803e-05]
[1756113705485,0.59695604,111740.0,111730.0,9.803e-05]
[1756113705707,0.75355604,111740.0,111730.0,9.803e-05]
[1756113705927,0.73680774,111740.0,111730.0,9.803e-05]
[1756113706141,0.75355778,111740.0,111730.0,9.803e-05]
[1756113706366,0.74562778,111740.0,111730.0,9.803e-05]
[1756113707825,0.74558778,111740.0,111730.0,9.803e-05]
[1756113708252,0.74870778,111740.0,111730.0,9.803e-05]
[1756113709296,0.74871446,111740.0,111730.0,9.803e-05]
[1756113709522,0.73195774,111740.0,111730.0,9.803e-05]
[1756113709756,0.73195774,111740.0,111730.0,0.00211803]
[1756113709986,0.74871436,111740.0,111730.0,9.803e-05]
[1756113711780,0.59215436,111740.0,111730.0,9.803e-05]
[1756113711986,0.56968743,111740.0,111730.0,9.803e-05]
[1756113712238,0.74867436,111740.0,111730.0,9.803e-05]
[1756113712593,0.74868217,111740.0,111730.0,9.803e-05]
[1756113712991,0.73467744,111740.0,111730.0,9.803e-05]
[1756113714889,0.73463744,111740.0,111730.0,9.803e-05]
[1756113715302,0.74302458,111740.0,111730.0,9.803e-05]
[1756113715720,0.73463744,111740.0,111730.0,9.803e-05]
[1756113715930,0.74303328,111740.0,111730.0,9.803e-05]
[1756113716163,0.75703797,111740.0,111730.0,9.803e-05]
[1756113716384,0.59217121,111740.0,111730.0,9.803e-05]
[1756113716617,0.74864946,111740.0,111730.0,9.803e-05]
[1756113716829,0.75703526,111740.0,111730.0,9.803e-05]
[1756113717720,0.74864946,111740.0,111730.0,9.803e-05]
[1756113717982,0.41318253,111740.0,111730.0,9.803e-05]
[1756113718412,0.74860946,111740.0,111730.0,9.803e-05]
[1756113720728,0.41318253,111740.0,111730.0,9.803e-05]
[1756113720947,0.01700469,111740.0,111730.0,0.96295815]
[1756113721166,0.003,111740.0,111730.0,0.00511803]
[1756113721379,0.003,111740.0,111730.0,0.96295815]
[1756113721619,0.003,111740.0,111730.0,0.98986615]
[1756113721849,0.00519,111740.0,111730.0,9.803e-05]
[1756113722063,0.00619,111740.0,111730.0,9.803e-05]
[1756113722279,0.01969471,111740.0,111730.0,9.803e-05]
[1756113722496,0.15947,111740.0,111730.0,0.00211803]
[1756113722677,0.16159,111740.0,111730.0,0.00211803]
[1756113724337,0.00519,111740.0,111730.0,0.00211803]
[1756113724551,0.17289439,111740.0,111730.0,0.00211803]
[1756113724762,0.00819,111740.0,111730.0,0.00211803]
[1756113724995,0.16455,111740.0,111730.0,0.00211803]
[1756113725208,0.15943,111740.0,111730.0,0.00211803]
[1756113725622,0.16043,111740.0,111730.0,0.00211803]
[1756113725917,0.15836,111740.0,111730.0,0.00211803]
[1756113726400,0.16355,111740.0,111730.0,0.00211803]
[1756113726609,0.16043,111740.0,111730.0,0.00211803]
[1756113726836,0.002,111740.0,111730.0,0.00211803]
[1756113727012,0.15836,111740.0,111730.0,0.00211803]
[1756113727212,0.16994408,111740.0,111730.0,0.00211803]
[1756113728090,0.16990408,111740.0,111730.0,0.00511803]
[1756113728984,0.16990408,111740.0,111730.0,0.00211803]
[1756113729755,0.01358408,111740.0,111730.0,0.00211803]
[1756113729949,0.16990408,111740.0,111730.0,0.00211803]
[1756113730371,0.17199408,111740.0,111730.0,0.00211803]
[1756113731850,0.17195408,111740.0,111730.0,0.00211803]
[1756113733330,0.17503408,111740.0,111730.0,0.00211803]
[1756113734745,0.17503408,111740.0,111730.0,0.00210803]
[1756113735785,0.01875408,111740.0,111730.0,0.00210803]
[1756113735984,0.17499408,111740.0,111730.0,0.00210803]
[1756113736413,0.17499408,111740.0,111730.0,9.803e-05]
[1756113737797,0.17499408,111740.0,111730.0,0.00210803]
[1756113739736,0.01875408,111740.0,111730.0,0.00210803]
[1756113739944,0.17495408,111740.0,111730.0,0.00210803]
[1756113740437,0.002,111740.0,111730.0,0.96314815]
[1756113740644,0.002,111740.0,111730.0,0.00530803]
[1756113740846,0.002,111740.0,111730.0,0.99229168]
[1756113741108,0.002,111740.0,111730.0,0.99005415]
[1756113741550,0.16764103,111760.0,111730.0,0.99005415]
[1756113741803,0.01144103,111760.0,111750.0,0.94897012]